[Event "*** Titled Tuesday Blitz"]
[Site "Chess.com"]
[Date "2021.03.09"]
[Round "4"]
[White "SirStrateg"]
[Black "onnoelgersma"]
[Result "1-0"]
[WhiteElo "2605"]
[BlackElo "2397"]
[TimeControl "180+1"]
[EndTime "10:43:24 PST"]
[Termination "SirStrateg won by resignation"]

1. d4 {[%clk 0:02:51.9]} 1... d5 {[%clk 0:03:00.4]} 2. Bf4 {[%clk 0:02:50.9]}
2... Nf6 {[%clk 0:02:58.3]} 3. e3 {[%clk 0:02:50.8]} 3... c5 {[%clk 0:02:58.7]}
4. c3 {[%clk 0:02:49.5]} 4... Nc6 {[%clk 0:02:59.2]} 5. Nd2 {[%clk 0:02:49.4]}
5... e6 {[%clk 0:02:50.8]} 6. Ngf3 {[%clk 0:02:48.3]} 6... Nh5 {[%clk
0:02:49.8]} 7. Bg5 {[%clk 0:02:48]} 7... f6 {[%clk 0:02:49.6]} 8. Bh4 {[%clk
0:02:48.1]} 8... cxd4 {[%clk 0:02:49.7]} 9. cxd4 {[%clk 0:02:46.9]} 9... g6
{[%clk 0:02:48.5]} 10. a3 {[%clk 0:02:45.8]} 10... Ng7 {[%clk 0:02:48.8]} 11.
Bd3 {[%clk 0:02:45.3]} 11... Nf5 {[%clk 0:02:48.7]} 12. Bxf5 {[%clk 0:02:44.6]}
12... exf5 {[%clk 0:02:48.7]} 13. b4 {[%clk 0:02:38.8]} 13... Be7 {[%clk
0:02:45.6]} 14. O-O {[%clk 0:02:37.9]} 14... O-O {[%clk 0:02:44.9]} 15. Nb3
{[%clk 0:02:37.5]} 15... b6 {[%clk 0:02:42.4]} 16. b5 {[%clk 0:02:35.7]} 16...
Na5 {[%clk 0:02:42.3]} 17. Nxa5 {[%clk 0:02:35]} 17... bxa5 {[%clk 0:02:43.2]}
18. Qb3 {[%clk 0:02:32.2]} 18... Rb8 {[%clk 0:02:37.9]} 19. Bg3 {[%clk
0:02:31.4]} 19... Rb7 {[%clk 0:02:37.5]} 20. Rfc1 {[%clk 0:02:16.5]} 20... a6
{[%clk 0:02:11.4]} 21. Rxc8 {[%clk 0:02:15.7]} 21... Qxc8 {[%clk 0:02:04.7]} 22.
Qxd5+ {[%clk 0:02:16.3]} 22... Kg7 {[%clk 0:02:01.1]} 23. bxa6 {[%clk
0:02:16.6]} 23... Ra7 {[%clk 0:01:55.2]} 24. Qxa5 {[%clk 0:02:13.9]} 24... Rxa6
{[%clk 0:01:52.3]} 25. Qd2 {[%clk 0:02:08.3]} 25... Rxa3 {[%clk 0:01:43.1]} 26.
Rc1 {[%clk 0:02:04.2]} 26... Qa6 {[%clk 0:01:34.7]} 27. h4 {[%clk 0:01:59.9]}
27... Rc8 {[%clk 0:01:15.5]} 28. Rxc8 {[%clk 0:01:35.3]} 28... Qxc8 {[%clk
0:01:16.4]} 29. d5 {[%clk 0:01:35.1]} 29... Ra1+ {[%clk 0:00:54]} 30. Kh2 {[%clk
0:01:34.8]} 30... Qc1 {[%clk 0:00:45.4]} 31. Qxc1 {[%clk 0:01:34.3]} 31... Rxc1
{[%clk 0:00:46.3]} 32. Nd4 {[%clk 0:01:28.8]} 32... Kf7 {[%clk 0:00:42.8]} 33.
d6 {[%clk 0:01:07.9]} 33... Bd8 {[%clk 0:00:42.8]} 34. h5 {[%clk 0:01:05.7]}
34... Bb6 {[%clk 0:00:37.6]} 35. hxg6+ {[%clk 0:00:56]} 35... hxg6 {[%clk
0:00:38.5]} 36. Nb5 {[%clk 0:00:50.2]} 36... Ke6 {[%clk 0:00:31.1]} 37. Nc7+
{[%clk 0:00:45.9]} 37... Bxc7 {[%clk 0:00:29.8]} 38. dxc7 {[%clk 0:00:46.4]}
38... g5 {[%clk 0:00:30.2]} 39. Kh3 {[%clk 0:00:31.3]} 39... Rh1+ {[%clk
0:00:12.9]} 40. Bh2 {[%clk 0:00:31.7]} 40... Rc1 {[%clk 0:00:12.3]} 41. Bg3
{[%clk 0:00:25.2]} 41... Kf7 {[%clk 0:00:10.2]} 42. f3 {[%clk 0:00:23.5]} 42...
Ke6 {[%clk 0:00:10.1]} 43. Bh2 {[%clk 0:00:23.3]} 43... Rc3 {[%clk 0:00:09.7]}
44. Bg3 {[%clk 0:00:21.3]} 44... Rc2 {[%clk 0:00:09.9]} 45. Kh2 {[%clk
0:00:20.9]} 45... Kf7 {[%clk 0:00:09.5]} 46. Kg1 {[%clk 0:00:21.2]} 46... Ke6
{[%clk 0:00:09.3]} 47. Kf1 {[%clk 0:00:21.4]} 47... Kd7 {[%clk 0:00:09.8]} 48.
Bh2 {[%clk 0:00:21.4]} 48... Ra2 {[%clk 0:00:09.8]} 49. Bg3 {[%clk 0:00:21.8]}
49... Rc2 {[%clk 0:00:07.5]} 50. Bh2 {[%clk 0:00:21.9]} 50... Kc8 {[%clk
0:00:07.9]} 51. Bg3 {[%clk 0:00:22.2]} 51... Kb7 {[%clk 0:00:08.2]} 52. Bh2
{[%clk 0:00:22.5]} 52... Ka6 {[%clk 0:00:08.6]} 53. Bg3 {[%clk 0:00:23]} 53...
Kb5 {[%clk 0:00:09.1]} 54. Bh2 {[%clk 0:00:23.5]} 54... Ka4 {[%clk 0:00:09.5]}
55. Bg3 {[%clk 0:00:23.9]} 55... Rc4 {[%clk 0:00:09.8]} 56. Ke2 {[%clk
0:00:23.1]} 56... Kb5 {[%clk 0:00:09]} 57. Kd3 {[%clk 0:00:23.2]} 57... Rc1
{[%clk 0:00:09.3]} 58. Bd6 {[%clk 0:00:21.7]} 58... Ka6 {[%clk 0:00:08.7]} 59.
Be7 {[%clk 0:00:20.4]} 59... Rxc7 {[%clk 0:00:08.2]} 60. Bxf6 {[%clk 0:00:20.9]}
60... g4 {[%clk 0:00:08.4]} 61. fxg4 {[%clk 0:00:19.3]} 61... Rd7+ {[%clk
0:00:08.6]} 62. Bd4 {[%clk 0:00:18.2]} 62... fxg4 {[%clk 0:00:08.7]} 63. Ke4
{[%clk 0:00:18.7]} 63... Kb5 {[%clk 0:00:09]} 64. Kf4 {[%clk 0:00:18.7]} 64...
Kc4 {[%clk 0:00:09.5]} 65. Kxg4 {[%clk 0:00:19]} 65... Kd5 {[%clk 0:00:09.9]}
66. Kf5 {[%clk 0:00:19.3]} 66... Rb7 {[%clk 0:00:08.3]} 67. g4 {[%clk
0:00:19.7]} 67... Rb1 {[%clk 0:00:08.2]} 68. g5 {[%clk 0:00:20.1]} 68... Rf1+
{[%clk 0:00:08.5]} 69. Kg6 {[%clk 0:00:20.2]} 69... Ke6 {[%clk 0:00:09.1]} 70.
Kg7 {[%clk 0:00:19.5]} 70... Rg1 {[%clk 0:00:07.5]} 71. Bf6 {[%clk 0:00:16.4]}
71... Kf5 {[%clk 0:00:06.9]} 72. Kf7 {[%clk 0:00:13.5]} 72... Rb1 {[%clk
0:00:04.7]} 73. g6 {[%clk 0:00:11.8]} 73... Rg1 {[%clk 0:00:04.1]} 74. g7 {[%clk
0:00:12]} 74... Ke4 {[%clk 0:00:02.4]} 75. Bd4 {[%clk 0:00:12]} 1-0

[Event "*** Titled Tuesday Blitz"]
[Site "Chess.com"]
[Date "2021.03.09"]
[Round "4"]
[White "GMKrikor"]
[Black "AldokhinIvan"]
[Result "1/2-1/2"]
[WhiteElo "2717"]
[BlackElo "2525"]
[TimeControl "180+1"]
[EndTime "10:43:31 PST"]
[Termination "Game drawn by repetition"]

1. Nf3 {[%clk 0:03:00.9]} 1... Nf6 {[%clk 0:02:59.5]} 2. c4 {[%clk 0:03:00.5]}
2... g6 {[%clk 0:02:59.5]} 3. Nc3 {[%clk 0:02:59.6]} 3... Bg7 {[%clk 0:03:00.4]}
4. e4 {[%clk 0:02:59.6]} 4... d6 {[%clk 0:03:01]} 5. d4 {[%clk 0:02:59.8]} 5...
O-O {[%clk 0:03:01.3]} 6. h3 {[%clk 0:03:00.1]} 6... Nc6 {[%clk 0:03:01.7]} 7.
Be3 {[%clk 0:02:57.3]} 7... Re8 {[%clk 0:03:01.4]} 8. d5 {[%clk 0:02:55.4]} 8...
Nb4 {[%clk 0:03:01.6]} 9. a3 {[%clk 0:02:54.5]} 9... Na6 {[%clk 0:03:01.6]} 10.
Bd3 {[%clk 0:02:48.5]} 10... e6 {[%clk 0:03:01.9]} 11. O-O {[%clk 0:02:39.3]}
11... exd5 {[%clk 0:03:02]} 12. exd5 {[%clk 0:02:38.4]} 12... Nc5 {[%clk
0:03:02.1]} 13. Bc2 {[%clk 0:02:38.5]} 13... Nfe4 {[%clk 0:02:50.2]} 14. Nxe4
{[%clk 0:02:33.8]} 14... Nxe4 {[%clk 0:02:49.7]} 15. Bd4 {[%clk 0:02:34.5]}
15... Bd7 {[%clk 0:02:25.9]} 16. Re1 {[%clk 0:02:19.3]} 16... Nf6 {[%clk
0:01:29.7]} 17. Qd2 {[%clk 0:02:12.8]} 17... Rxe1+ {[%clk 0:01:15]} 18. Rxe1
{[%clk 0:02:13.7]} 18... Qf8 {[%clk 0:01:15.2]} 19. Qc3 {[%clk 0:01:23]} 19...
Nh5 {[%clk 0:01:05.3]} 20. b4 {[%clk 0:01:09.7]} 20... Re8 {[%clk 0:00:53.4]}
21. Rxe8 {[%clk 0:01:04.8]} 21... Qxe8 {[%clk 0:00:51.1]} 22. Bxg7 {[%clk
0:00:50.8]} 22... Nxg7 {[%clk 0:00:47.9]} 23. Qd4 {[%clk 0:00:51]} 23... b6
{[%clk 0:00:42.7]} 24. g4 {[%clk 0:00:50.3]} 24... Qe7 {[%clk 0:00:24.7]} 25.
Kg2 {[%clk 0:00:46.9]} 25... h5 {[%clk 0:00:24.7]} 26. Qf4 {[%clk 0:00:37.9]}
26... hxg4 {[%clk 0:00:20.5]} 27. hxg4 {[%clk 0:00:38.8]} 27... Qe2 {[%clk
0:00:19.8]} 28. Nd4 {[%clk 0:00:25.7]} 28... Qe5 {[%clk 0:00:17.1]} 29. Qxe5
{[%clk 0:00:21.8]} 29... dxe5 {[%clk 0:00:18]} 30. Nf3 {[%clk 0:00:22.5]} 30...
f6 {[%clk 0:00:11.4]} 31. g5 {[%clk 0:00:22.9]} 31... Kf7 {[%clk 0:00:10.9]} 32.
gxf6 {[%clk 0:00:20.4]} 32... Kxf6 {[%clk 0:00:11.8]} 33. Nd2 {[%clk 0:00:16.1]}
33... Kg5 {[%clk 0:00:08.8]} 34. Kf3 {[%clk 0:00:10.3]} 34... Bg4+ {[%clk
0:00:08.8]} 35. Ke3 {[%clk 0:00:09.2]} 35... Nf5+ {[%clk 0:00:09.2]} 36. Bxf5
{[%clk 0:00:09.4]} 36... gxf5 {[%clk 0:00:09.3]} 37. f3 {[%clk 0:00:08.1]} 37...
Bh5 {[%clk 0:00:06.9]} 38. c5 {[%clk 0:00:07.2]} 38... Bg6 {[%clk 0:00:06.5]}
39. Nc4 {[%clk 0:00:05.7]} 39... f4+ {[%clk 0:00:05.9]} 40. Kf2 {[%clk
0:00:04.5]} 40... Kf5 {[%clk 0:00:06.1]} 41. d6 {[%clk 0:00:04.7]} 41... cxd6
{[%clk 0:00:06.4]} 42. c6 {[%clk 0:00:03.3]} 42... Ke6 {[%clk 0:00:06.7]} 43. c7
{[%clk 0:00:02.8]} 43... Kd7 {[%clk 0:00:06.9]} 44. Nxd6 {[%clk 0:00:03.7]}
44... Kxc7 {[%clk 0:00:06.8]} 45. Nc4 {[%clk 0:00:02.1]} 45... e4 {[%clk
0:00:07.2]} 46. fxe4 {[%clk 0:00:02.8]} 46... Bxe4 {[%clk 0:00:07.8]} 47. Nd2
{[%clk 0:00:02.5]} 47... Bd5 {[%clk 0:00:07.7]} 48. Ke2 {[%clk 0:00:03]} 48...
Kd6 {[%clk 0:00:08]} 49. Kd3 {[%clk 0:00:03.6]} 49... Ke5 {[%clk 0:00:08.4]} 50.
Nf1 {[%clk 0:00:03.2]} 50... Bc6 {[%clk 0:00:07.6]} 51. Nd2 {[%clk 0:00:02.6]}
51... Bb5+ {[%clk 0:00:07.8]} 52. Kc3 {[%clk 0:00:02.5]} 52... Kf5 {[%clk
0:00:05.3]} 53. Kd4 {[%clk 0:00:02.6]} 53... Kg4 {[%clk 0:00:05.6]} 54. Ke4
{[%clk 0:00:03.3]} 54... f3 {[%clk 0:00:05.4]} 55. Ke3 {[%clk 0:00:04.2]} 55...
Kg3 {[%clk 0:00:05.1]} 56. Ne4+ {[%clk 0:00:04.8]} 56... Kg4 {[%clk 0:00:04.7]}
57. Nf2+ {[%clk 0:00:05.7]} 57... Kf5 {[%clk 0:00:05.1]} 58. Kxf3 {[%clk
0:00:05.8]} 58... Ke5 {[%clk 0:00:06]} 59. Ke3 {[%clk 0:00:06.4]} 59... Kd5
{[%clk 0:00:06.9]} 60. Ne4 {[%clk 0:00:06.3]} 60... Kc4 {[%clk 0:00:07.3]} 61.
Nd6+ {[%clk 0:00:06.7]} 61... Kb3 {[%clk 0:00:07.8]} 62. Nxb5 {[%clk 0:00:07.6]}
62... a6 {[%clk 0:00:08.3]} 63. Nc7 {[%clk 0:00:05.4]} 63... Kxa3 {[%clk
0:00:05.6]} 64. Nxa6 {[%clk 0:00:05.2]} 64... Ka4 {[%clk 0:00:06.1]} 65. Kd4
{[%clk 0:00:03.6]} 65... Kb5 {[%clk 0:00:06.5]} 66. Kd5 {[%clk 0:00:04.3]} 66...
Kxa6 {[%clk 0:00:06.7]} 67. Kc6 {[%clk 0:00:04.7]} 67... b5 {[%clk 0:00:04.3]}
68. Kc5 {[%clk 0:00:05.2]} 68... Ka7 {[%clk 0:00:04.6]} 69. Kc6 {[%clk
0:00:05.9]} 69... Ka6 {[%clk 0:00:04.4]} 70. Kc5 {[%clk 0:00:06.7]} 70... Ka7
{[%clk 0:00:04.9]} 71. Kxb5 {[%clk 0:00:07.6]} 71... Kb7 {[%clk 0:00:05.4]} 72.
Kc5 {[%clk 0:00:08.2]} 72... Kc7 {[%clk 0:00:05.9]} 73. b5 {[%clk 0:00:08.8]}
73... Kb7 {[%clk 0:00:06.5]} 74. Kc4 {[%clk 0:00:09.1]} 74... Kc7 {[%clk
0:00:06.2]} 75. Kb4 {[%clk 0:00:10]} 75... Kb7 {[%clk 0:00:06.5]} 76. Kc5 {[%clk
0:00:10.9]} 76... Kc7 {[%clk 0:00:06.9]} 77. b6+ {[%clk 0:00:11.8]} 77... Kb7
{[%clk 0:00:07.4]} 78. Kb5 {[%clk 0:00:12.6]} 78... Kb8 {[%clk 0:00:07.8]} 79.
Ka5 {[%clk 0:00:12]} 79... Kb7 {[%clk 0:00:08.7]} 80. Kb5 {[%clk 0:00:12.1]}
80... Kb8 {[%clk 0:00:09.3]} 81. Kc5 {[%clk 0:00:12.7]} 81... Kb7 {[%clk
0:00:09.7]} 82. Kb5 {[%clk 0:00:13.2]} 1/2-1/2

[Event "*** Titled Tuesday Blitz"]
[Site "Chess.com"]
[Date "2021.03.09"]
[Round "4"]
[White "Durarbayli"]
[Black "crazy_but_lazy"]
[Result "1-0"]
[WhiteElo "2684"]
[BlackElo "2505"]
[TimeControl "180+1"]
[EndTime "10:43:34 PST"]
[Termination "Durarbayli won by resignation"]

1. e4 {[%clk 0:03:00.9]} 1... c5 {[%clk 0:02:58.3]} 2. Nf3 {[%clk 0:03:00.3]}
2... d6 {[%clk 0:02:58.1]} 3. d4 {[%clk 0:03:00.7]} 3... cxd4 {[%clk 0:02:59]}
4. Nxd4 {[%clk 0:03:01.4]} 4... Nf6 {[%clk 0:02:59]} 5. Nc3 {[%clk 0:03:01.7]}
5... a6 {[%clk 0:02:57.3]} 6. Bg5 {[%clk 0:03:01.9]} 6... Nbd7 {[%clk
0:02:51.1]} 7. Qd2 {[%clk 0:02:59.8]} 7... Qc7 {[%clk 0:02:49.8]} 8. O-O-O
{[%clk 0:02:57.5]} 8... h6 {[%clk 0:02:40.9]} 9. Bxf6 {[%clk 0:02:51.4]} 9...
Nxf6 {[%clk 0:02:41.1]} 10. Nd5 {[%clk 0:02:49.5]} 10... Nxd5 {[%clk 0:02:10.6]}
11. exd5 {[%clk 0:02:47.4]} 11... g6 {[%clk 0:02:09.8]} 12. g3 {[%clk
0:02:25.2]} 12... Bg7 {[%clk 0:02:08.1]} 13. Bg2 {[%clk 0:02:24.9]} 13... O-O
{[%clk 0:02:05.6]} 14. Rhe1 {[%clk 0:02:22.5]} 14... Re8 {[%clk 0:01:41.1]} 15.
Kb1 {[%clk 0:02:13.4]} 15... Bd7 {[%clk 0:01:35.9]} 16. Re3 {[%clk 0:02:11.8]}
16... Rac8 {[%clk 0:01:31.6]} 17. c3 {[%clk 0:02:06]} 17... Qc4 {[%clk
0:01:21.6]} 18. f4 {[%clk 0:01:38.6]} 18... Bg4 {[%clk 0:01:09.8]} 19. Bf3
{[%clk 0:01:19.4]} 19... Bxd4 {[%clk 0:00:45.3]} 20. Qxd4 {[%clk 0:01:17.8]}
20... Qxd4 {[%clk 0:00:40.7]} 21. Rxd4 {[%clk 0:01:18.7]} 21... Bxf3 {[%clk
0:00:41]} 22. Rxf3 {[%clk 0:01:19.6]} 22... Rc7 {[%clk 0:00:40]} 23. Re3 {[%clk
0:01:18.9]} 23... Rec8 {[%clk 0:00:38.7]} 24. Rde4 {[%clk 0:01:17.4]} 24... Kf8
{[%clk 0:00:39]} 25. Kc2 {[%clk 0:01:16.8]} 25... h5 {[%clk 0:00:39.2]} 26. a4
{[%clk 0:01:15.9]} 26... Rd7 {[%clk 0:00:38.5]} 27. b4 {[%clk 0:01:11.1]} 27...
b6 {[%clk 0:00:33.8]} 28. Kb3 {[%clk 0:01:10.1]} 28... Rdc7 {[%clk 0:00:31.6]}
29. h3 {[%clk 0:01:07.6]} 29... a5 {[%clk 0:00:25.1]} 30. g4 {[%clk 0:01:04.6]}
30... hxg4 {[%clk 0:00:23.6]} 31. hxg4 {[%clk 0:01:05.5]} 31... axb4 {[%clk
0:00:15.9]} 32. Kxb4 {[%clk 0:01:00.8]} 32... Rc5 {[%clk 0:00:15.4]} 33. c4
{[%clk 0:00:50.1]} 33... R8c7 {[%clk 0:00:13.7]} 34. g5 {[%clk 0:00:34.1]} 34...
Ra7 {[%clk 0:00:13]} 35. Ra3 {[%clk 0:00:24.7]} 35... Rac7 {[%clk 0:00:10.8]}
36. Rh3 {[%clk 0:00:23.6]} 36... Ke8 {[%clk 0:00:07.8]} 37. Rh8+ {[%clk
0:00:19.8]} 37... Kd7 {[%clk 0:00:08]} 38. Rf8 {[%clk 0:00:19.4]} 38... Ra7
{[%clk 0:00:04.1]} 39. Rxf7 {[%clk 0:00:17.7]} 39... Ke8 {[%clk 0:00:04.8]} 40.
Rg7 {[%clk 0:00:14.7]} 40... Rca5 {[%clk 0:00:05.4]} 41. Kb3 {[%clk 0:00:15.2]}
41... Kf8 {[%clk 0:00:04.2]} 42. Rxg6 {[%clk 0:00:05.6]} 42... Rxa4 {[%clk
0:00:04.6]} 43. Rge6 {[%clk 0:00:06.1]} 43... Ra3+ {[%clk 0:00:04.7]} 44. Kc2
{[%clk 0:00:06.1]} 44... Ra2+ {[%clk 0:00:05.1]} 45. Kd1 {[%clk 0:00:05.3]}
45... Rg2 {[%clk 0:00:05.1]} 46. Re2 {[%clk 0:00:04.8]} 46... Ra1+ {[%clk
0:00:04.5]} 47. Kd2 {[%clk 0:00:05.2]} 47... Ra2+ {[%clk 0:00:04.7]} 48. Kd3
{[%clk 0:00:05.5]} 48... Rg3+ {[%clk 0:00:05.1]} 49. R6e3 {[%clk 0:00:05.1]}
49... Rxe3+ {[%clk 0:00:04.3]} 50. Rxe3 {[%clk 0:00:04.8]} 50... Rf2 {[%clk
0:00:04.9]} 51. Ke4 {[%clk 0:00:05]} 51... Kf7 {[%clk 0:00:04.8]} 52. Rb3 {[%clk
0:00:04.3]} 52... Rc2 {[%clk 0:00:05.2]} 53. Kf5 {[%clk 0:00:04]} 53... Rxc4
{[%clk 0:00:05.2]} 54. Rxb6 {[%clk 0:00:04.5]} 54... Rc5 {[%clk 0:00:04.8]} 55.
g6+ {[%clk 0:00:05.4]} 55... Kg7 {[%clk 0:00:04.9]} 56. Ke6 {[%clk 0:00:05.7]}
56... Kxg6 {[%clk 0:00:05.4]} 57. Rb1 {[%clk 0:00:05.2]} 57... Ra5 {[%clk
0:00:04.7]} 58. Rg1+ {[%clk 0:00:05.7]} 58... Kh5 {[%clk 0:00:05]} 59. f5 {[%clk
0:00:06]} 59... Kh6 {[%clk 0:00:04.1]} 60. Rg2 {[%clk 0:00:05.2]} 60... Rb5
{[%clk 0:00:04.3]} 61. Rg8 {[%clk 0:00:04.6]} 61... Kh7 {[%clk 0:00:04.4]} 62.
Re8 {[%clk 0:00:04.7]} 62... Kh6 {[%clk 0:00:04.5]} 63. Rxe7 {[%clk 0:00:05.6]}
63... Rb2 {[%clk 0:00:04.8]} 64. f6 {[%clk 0:00:03.9]} 64... Kg6 {[%clk
0:00:04.8]} 65. Rg7+ {[%clk 0:00:03.8]} 65... Kh6 {[%clk 0:00:04.9]} 66. Rg3
{[%clk 0:00:04.4]} 66... Re2+ {[%clk 0:00:05.4]} 67. Kxd6 {[%clk 0:00:04.4]}
67... Kh7 {[%clk 0:00:06.3]} 68. f7 {[%clk 0:00:03.2]} 68... Rf2 {[%clk
0:00:06.7]} 69. Ke7 {[%clk 0:00:03.7]} 69... Rf3 {[%clk 0:00:07.3]} 70. Rxf3
{[%clk 0:00:02.7]} 70... Kg6 {[%clk 0:00:07]} 71. d6 {[%clk 0:00:03.6]} 71...
Kh5 {[%clk 0:00:07.9]} 72. d7 {[%clk 0:00:04.5]} 72... Kg4 {[%clk 0:00:08.2]}
73. d8=Q {[%clk 0:00:05.4]} 73... Kh5 {[%clk 0:00:09.1]} 74. Qd6 {[%clk
0:00:06.3]} 74... Kg5 {[%clk 0:00:09.4]} 75. Qf6+ {[%clk 0:00:06.5]} 75... Kg4
{[%clk 0:00:10.3]} 76. Rg3+ {[%clk 0:00:06.5]} 76... Kxg3 {[%clk 0:00:10.3]} 77.
Qg5+ {[%clk 0:00:06.7]} 77... Kh3 {[%clk 0:00:10.5]} 78. f8=Q {[%clk 0:00:07.2]}
78... Kh2 {[%clk 0:00:11.4]} 1-0

[Event "*** Titled Tuesday Blitz"]
[Site "Chess.com"]
[Date "2021.03.09"]
[Round "4"]
[White "Ziyamammadov"]
[Black "coalescenet"]
[Result "1-0"]
[WhiteElo "1791"]
[BlackElo "2191"]
[TimeControl "180+1"]
[EndTime "10:43:36 PST"]
[Termination "Ziyamammadov won by checkmate"]

1. e4 {[%clk 0:03:00.9]} 1... c6 {[%clk 0:02:57.4]} 2. Nf3 {[%clk 0:03:01.5]}
2... d5 {[%clk 0:02:57.5]} 3. exd5 {[%clk 0:03:00.7]} 3... cxd5 {[%clk
0:02:57.2]} 4. d4 {[%clk 0:03:00.8]} 4... Bg4 {[%clk 0:02:45.2]} 5. c4 {[%clk
0:03:00.1]} 5... Nf6 {[%clk 0:02:44.7]} 6. Nc3 {[%clk 0:02:59.1]} 6... e6 {[%clk
0:02:44.6]} 7. cxd5 {[%clk 0:02:58.5]} 7... Nxd5 {[%clk 0:02:44.3]} 8. Nxd5
{[%clk 0:02:56.9]} 8... Qxd5 {[%clk 0:02:42.1]} 9. a3 {[%clk 0:02:50.2]} 9...
Nc6 {[%clk 0:02:33.6]} 10. Be3 {[%clk 0:02:45.4]} 10... Bxf3 {[%clk 0:02:28]}
11. Qxf3 {[%clk 0:02:42.4]} 11... Qxf3 {[%clk 0:02:24.6]} 12. gxf3 {[%clk
0:02:41.8]} 12... O-O-O {[%clk 0:02:19.7]} 13. Rc1 {[%clk 0:02:39.3]} 13... Kb8
{[%clk 0:02:06.2]} 14. Rd1 {[%clk 0:02:31.5]} 14... Be7 {[%clk 0:01:55.5]} 15.
Bb5 {[%clk 0:02:24.4]} 15... Bf6 {[%clk 0:01:48.4]} 16. Bxc6 {[%clk 0:02:24]}
16... bxc6 {[%clk 0:01:47.3]} 17. O-O {[%clk 0:02:11.3]} 17... Rd5 {[%clk
0:01:45.6]} 18. Rc1 {[%clk 0:02:06]} 18... Kb7 {[%clk 0:01:44.8]} 19. Rc4 {[%clk
0:01:59.1]} 19... Rhd8 {[%clk 0:01:33.1]} 20. Rb4+ {[%clk 0:01:47.6]} 20... Kc7
{[%clk 0:01:25.6]} 21. Bf4+ {[%clk 0:01:41.3]} 21... e5 {[%clk 0:01:18]} 22.
dxe5 {[%clk 0:01:38.1]} 22... Bxe5 {[%clk 0:01:18.9]} 23. Rc1 {[%clk 0:01:11.2]}
23... Rd1+ {[%clk 0:01:01]} 24. Rxd1 {[%clk 0:01:04.8]} 24... Rxd1+ {[%clk
0:01:01.9]} 25. Kg2 {[%clk 0:01:02.5]} 25... Bxf4 {[%clk 0:00:51.3]} 26. Rxf4
{[%clk 0:01:00.6]} 26... f6 {[%clk 0:00:51.8]} 27. Rh4 {[%clk 0:00:59]} 27... h6
{[%clk 0:00:51.1]} 28. Re4 {[%clk 0:00:58.3]} 28... Rd2 {[%clk 0:00:41.3]} 29.
b4 {[%clk 0:00:44.6]} 29... Kd6 {[%clk 0:00:33.4]} 30. h4 {[%clk 0:00:38.5]}
30... Rd3 {[%clk 0:00:29.8]} 31. a4 {[%clk 0:00:35.8]} 31... Ra3 {[%clk
0:00:29.5]} 32. a5 {[%clk 0:00:35.1]} 32... Ra4 {[%clk 0:00:29.8]} 33. Rg4
{[%clk 0:00:26.4]} 33... g5 {[%clk 0:00:29.1]} 34. hxg5 {[%clk 0:00:26.2]} 34...
hxg5 {[%clk 0:00:26.9]} 35. Rd4+ {[%clk 0:00:23.7]} 35... Kc7 {[%clk 0:00:26.4]}
36. Rc4 {[%clk 0:00:20.7]} 36... Kb7 {[%clk 0:00:19.3]} 37. Kg3 {[%clk
0:00:19.5]} 37... a6 {[%clk 0:00:17.5]} 38. Kg4 {[%clk 0:00:18.1]} 38... Ra2
{[%clk 0:00:17.4]} 39. Kg3 {[%clk 0:00:11.3]} 39... Kc7 {[%clk 0:00:17.3]} 40.
Re4 {[%clk 0:00:10.9]} 40... Kd6 {[%clk 0:00:16.9]} 41. Rd4+ {[%clk 0:00:10.8]}
41... Ke6 {[%clk 0:00:17]} 42. Rc4 {[%clk 0:00:11]} 42... Kd5 {[%clk 0:00:17.3]}
43. Rc5+ {[%clk 0:00:11]} 43... Kd6 {[%clk 0:00:17.8]} 44. Rf5 {[%clk
0:00:10.4]} 44... Ke6 {[%clk 0:00:15.8]} 45. Rc5 {[%clk 0:00:10.8]} 45... Kd7
{[%clk 0:00:15]} 46. Rf5 {[%clk 0:00:08.9]} 46... Rb2 {[%clk 0:00:12.3]} 47.
Rxf6 {[%clk 0:00:09]} 47... Rxb4 {[%clk 0:00:12.6]} 48. Rf7+ {[%clk 0:00:09.4]}
48... Kd6 {[%clk 0:00:11.4]} 49. Ra7 {[%clk 0:00:09.8]} 49... Ra4 {[%clk
0:00:08.7]} 50. Rxa6 {[%clk 0:00:10]} 50... Kd5 {[%clk 0:00:07.7]} 51. Ra7
{[%clk 0:00:09.1]} 51... Kc5 {[%clk 0:00:07.7]} 52. Rg7 {[%clk 0:00:08.5]} 52...
Rxa5 {[%clk 0:00:06.2]} 53. Rxg5+ {[%clk 0:00:08.3]} 53... Kb6 {[%clk
0:00:06.7]} 54. Rxa5 {[%clk 0:00:06.6]} 54... Kxa5 {[%clk 0:00:07.6]} 55. Kf4
{[%clk 0:00:06.6]} 55... c5 {[%clk 0:00:07.8]} 56. Ke3 {[%clk 0:00:06.8]} 56...
Kb5 {[%clk 0:00:07.4]} 57. f4 {[%clk 0:00:06.5]} 57... c4 {[%clk 0:00:04.1]} 58.
f5 {[%clk 0:00:04.2]} 58... Ka4 {[%clk 0:00:01.8]} 59. f6 {[%clk 0:00:04.3]}
59... Kb3 {[%clk 0:00:02.7]} 60. f7 {[%clk 0:00:01.9]} 60... c3 {[%clk
0:00:03.6]} 61. f8=Q {[%clk 0:00:01.9]} 61... c2 {[%clk 0:00:03.8]} 62. Qb8+
{[%clk 0:00:02.8]} 62... Ka2 {[%clk 0:00:04.7]} 63. Qa7+ {[%clk 0:00:02.6]}
63... Kb1 {[%clk 0:00:05.6]} 64. Qb6+ {[%clk 0:00:03]} 64... Kc1 {[%clk
0:00:05.5]} 65. Qa5 {[%clk 0:00:03.9]} 65... Kd1 {[%clk 0:00:06.4]} 66. Qa1+
{[%clk 0:00:03.8]} 66... c1=Q+ {[%clk 0:00:07.3]} 67. Qxc1+ {[%clk 0:00:04.6]}
67... Kxc1 {[%clk 0:00:08]} 68. f4 {[%clk 0:00:05]} 68... Kc2 {[%clk 0:00:08.9]}
69. f5 {[%clk 0:00:05.9]} 69... Kc3 {[%clk 0:00:09.8]} 70. f6 {[%clk 0:00:06.8]}
70... Kc4 {[%clk 0:00:10.7]} 71. f7 {[%clk 0:00:07.5]} 71... Kd5 {[%clk
0:00:11.6]} 72. f8=Q {[%clk 0:00:07.8]} 72... Ke6 {[%clk 0:00:12.5]} 73. Qg7
{[%clk 0:00:07.4]} 73... Kd6 {[%clk 0:00:12.7]} 74. Kd4 {[%clk 0:00:07]} 74...
Kc6 {[%clk 0:00:12.9]} 75. Qe7 {[%clk 0:00:07.1]} 75... Kb6 {[%clk 0:00:13.8]}
76. Kc4 {[%clk 0:00:06.4]} 76... Ka6 {[%clk 0:00:14.7]} 77. Qd6+ {[%clk
0:00:04.4]} 77... Ka7 {[%clk 0:00:14.8]} 78. Qc6 {[%clk 0:00:04.1]} 78... Kb8
{[%clk 0:00:15]} 79. Kb5 {[%clk 0:00:04.1]} 79... Ka7 {[%clk 0:00:15.9]} 80.
Qd7+ {[%clk 0:00:03.9]} 80... Kb8 {[%clk 0:00:16.8]} 81. Kb6 {[%clk 0:00:04]}
81... Ka8 {[%clk 0:00:17.7]} 82. Qe8# {[%clk 0:00:04]} 1-0